Cogmind - Beta 16 @@@ ROGUE MODE // 2025.10.31 @ 22:00:21 Player: Gris Result: Destroyed by G-34 Mercenary with Small Laser Performance ------------- Evolutions (0) 0 Regions Visited (1) 200 Robots Destroyed (20) 100 Value Destroyed (501) 501 Prototype IDs (0) 0 Alien Tech Used (0) 0 Bonus (0) 0 TOTAL SCORE: 801 Bonus ------- None Cogmind --------- Core Integrity 0/250 Matter 295/300 Energy 250/250 System Corruption 0% Temperature Cool (24) Movement Hovering (476) Ox7 Location -10/Materials Parts ------- > --- POWER (1) -------- Ion Engine > --- PROPULSION (2) --- Hover Unit Hover Unit > --- UTILITY (2) ------ Huge Storage Unit ECM Suite > --- WEAPON (2) ------- (None) > --- INVENTORY (25) --- Light Treads Aluminum Leg Aluminum Leg Compact Wheel Flight Unit Flight Unit Heat Sink Small Matter Pod (50) ECM Suite ECM Suite Small Laser Datajack Welding Torch Welding Torch Peak State ------------ > --- POWER ------------ Ion Engine > --- PROPULSION ------- Hover Unit Hover Unit > --- UTILITY ---------- Huge Storage Unit Light Armor Plating > --- WEAPON ----------- Particle Gun Light Assault Rifle > --- INVENTORY -------- Light Treads Aluminum Leg Aluminum Leg Compact Wheel Flight Unit Flight Unit Heat Sink Small Matter Pod Medium Laser Small Laser Datajack [Rating: 9] Favorites ----------- Power Ion Engine Engine Ion Engine Propulsion Light Treads Treads Light Treads Wheel Compact Wheel Hover Unit Hover Unit Utility Huge Storage Unit Device Structural Scanner Storage Huge Storage Unit Protection Light Armor Plating Weapon Light Assault Rifle Energy Gun Medium Laser Ballistic Gun Light Assault Rifle Build | -11 -10 ------- Run | Yrd Mat Slots Evolved . | . . Power . | . . Propulsion . | . . Utility . | . . Weapon . | . . Parts Attached 20 | 6 14 Power 3 | 1 2 Engine 3 | 1 2 Core . | . . Reactor . | . . Propulsion 6 | 2 4 Treads 2 | 2 . Leg . | . . Wheel 2 | . 2 Hover 2 | . 2 Flight . | . . Utility 6 | 1 5 Device 2 | . 2 Storage 3 | 1 2 Processor . | . . Hackware . | . . Protection 1 | . 1 Artifact . | . . Weapon 5 | 2 3 Energy Gun 4 | 1 3 Energy Cannon . | . . Ballistic Gun 1 | 1 . Ballistic Cannon . | . . Launcher . | . . Special Weapon . | . . Impact Weapon . | . . Slashing Weapon . | . . Piercing Weapon . | . . Special Melee Weapon . | . . Unidentified Prototypes . | . . Parts Lost 10 | . 10 Power 2 | . 2 Propulsion 3 | . 3 Utility 1 | . 1 Weapon 4 | . 4 Highest Loss Streak 3 | . 3 To Critical Strikes . | . . Average Backups 10 | 4 10 Power . | . . Propulsion 5 | 2 5 Utility 1 | . 1 Weapon 2 | . 2 Tool/Special . | . . Unused Backups 13 | . 13 Power . | . . Propulsion 5 | . 5 Utility 4 | . 4 Weapon 1 | . 1 Tool/Special 3 | . 3 Average Slot Usage (%) 88 | . 88 Engine 13 | . 13 Treads 10 | . 10 Wheel 5 | . 5 Hover 9 | . 9 Device 8 | . 8 Storage 14 | . 14 Protection 1 | . 1 Energy Gun 14 | . 14 Ballistic Gun 9 | . 9 Peak Build Rating 9 | 6 9 Average Rating 7 | 5 7 On Entrance 3 | . 6 Avg Prop Armor Cover (%) 23 | 23 23 Naked Turns . | . . Heaviest Build 93 | 13 93 Greatest Support 40 | 3 40 Greatest Overweight (x) 27 | 4 27 Average Overweight (x) 3 | 2 3 Largest Inventory Capacity 25 | 8 25 Average Capacity 22 | 7 23 Most Carried 16 | 6 16 Average Carried 10 | 4 10 Final Capacity 25 | 8 25 Final Carried 14 | 6 14 Class Distribution -------------------- 100% | Mutant Dominant Class ---------------- Mutant | -10/Materials Resources | -11 -10 ----------- Run | Yrd Mat Matter Collected 481 | 217 264 Remotely . | . . Salvage Created 641 | . 641 Parts 40 | . 40 Haulers Intercepted . | . . Recyclers Shooed 1 | . 1 Parts Field Recycled . | . . Retrieved Matter . | . . Parts Self-Destructed . | . . Prevented . | . . Parts Restored . | . . Kills | -11 -10 ------- Run | Yrd Mat Combat Hostiles Destroyed 16 | . 16 Guns 15 | . 15 AOE 1 | . 1 Classes Destroyed 5 | . 5 Worker 1 | . 1 Builder 1 | . 1 Watcher 2 | . 2 Swarmer 5 | . 5 Grunt 11 | . 11 Best Kill Streak 4 | . 4 Combat Bots Only 4 | . 4 Max Kills in Single Turn 1 | . 1 Gunslinging . | . . Exploded 1 | . 1 Melee . | . . Uniques/NPCs Destroyed . | . . Combat | -11 -10 -------- Run | Yrd Mat Hostile Shots Fired 153 | . 153 Missed 42 | . 42 Hits 111 | . 111 Projectile 111 | . 111 Critical Strikes 2 | . 2 Damage Taken 1204 | . 1204 Core 250 | . 250 Absorbed by Shields . | . . Regen/Repaired (Parts) 38 | . 38 Core Remaining (%) 100 | 100 . Volleys Fired 72 | . 72 Largest 2 | . 2 Hottest 115 | . 115 Shots Fired 124 | . 124 Gun 124 | . 124 Cannon . | . . Launcher . | . . Special . | . . Kinetic 52 | . 52 Thermal 63 | . 63 Explosive . | . . Electromagnetic 9 | . 9 Robot Hit Streak 14 | . 14 Robot Miss Streak 4 | . 4 Penetration Max . | . . Secondary Targets 1 | . 1 Max Gunslinging Chain 1 | . 1 Shots Hit Robots 75 | . 75 Core Hits 38 | . 38 Critical Kills . | . . Critical Parts Destroyed . | . . Critical Strikes 5 | . 5 Burn 4 | . 4 Corrupt 1 | . 1 Melee Attacks . | . . Impact . | . . Slashing . | . . Piercing . | . . Sneak Attacks . | . . Combat Hostiles . | . . Follow-up Attacks . | . . Damage Inflicted 870 | . 870 Guns 829 | . 829 Cannons . | . . Explosions 35 | . 35 Melee . | . . Ramming 6 | . 6 Kinetic 226 | . 226 Thermal 569 | . 569 Explosive . | . . Electromagnetic 69 | . 69 Impact . | . . Slashing . | . . Piercing . | . . Highest Corruption . | . . Average Corruption . | . . Corruption Purged . | . . Corruption Blocked . | . . Overload Shots . | . . Overflow Damage . | . . Projectiles . | . . Explosions . | . . Melee . | . . Knockbacks . | . . Impact . | . . Kinetic . | . . Secondary . | . . Self-Inflicted Damage 31 | . 31 Shots 1 | . 1 Rammed 1 | . 1 Targets Rammed 1 | . 1 Kicked . | . . Crushed . | . . Highest Temperature 300 | . 300 Average Temperature 79 | . 79 Received Heat Transfer 525 | . 525 Effects 1 | . 1 Energy Bleed 1 | . 1 Siege Activations . | . . Martial Activations . | . . Shielding Activations . | . . Robots Disrupted . | . . Combat Hostiles . | . . Robots Corrupted . | . . Combat Hostiles . | . . Parts Fried . | . . Impact Corruptions . | . . Robots Melted . | . . Combat Hostiles . | . . Parts Melted 2 | . 2 Heat Transferred 1826 | . 1826 Parts Sabotaged . | . . Parts Stolen . | . . Parts Stripped . | . . Power Chain Reactions 1 | . 1 Alert | -11 -10 ------- Run | Yrd Mat Maximum Alert Level . | . . Low Security (%) 100 | 100 100 Level 1 . | . . Level 2 . | . . Level 3 . | . . Level 4 . | . . Level 5 . | . . High Security . | . . Max Security . | . . Peak Influence 116 | . 116 Initial . | . . Average 38 | . 40 Influence Increases 453 | . 453 Destroy 0b10 Robot/C 320 | . 320 Destroy 0b10 Robot/NC 20 | . 20 Destroy Leader 64 | . 64 Successful Hack 2 | . 2 Destroy Structure 2 | . 2 Partial Spotted 15 | . 15 Lose Combat Pursuer 30 | . 30 Influence Decreases 417 | . 417 Time Decay 347 | . 347 Lost Part 70 | . 70 Squads Dispatched 4 | . 4 Investigation 3 | . 3 Extermination . | . . Reinforcement 1 | . 1 Assault . | . . Garrison . | . . Intercept . | . . Searches Triggered . | . . Construction Impeded . | . . Haulers Reinforced . | . . Active Scanning Responses . | . . Cargo Convoy Interrupts . | . . Stealth | -11 -10 --------- Run | Yrd Mat Distress Signals 2 | . 2 Communications Jammed . | . . Distress Signals . | . . Times Spotted 35 | . 35 Peak Tracking Total 4 | . 4 Tactical Retreats 2 | . 2 Traps | -11 -10 ------- Run | Yrd Mat Traps Triggered 1 | . 1 Indirectly . | . . Trap Hack Attempts . | . . Triggered . | . . Disarmed . | . . Reprogrammed . | . . Reused . | . . Traps Extracted . | . . Installed . | . . Triggered . | . . Machines | -11 -10 ---------- Run | Yrd Mat Machines Disabled . | . . Max in Single Turn . | . . Machines Repaired . | . . Machines Dismantled . | . . Machines Sabotaged . | . . Overloaded Fab Kills . | . . Hacking | -11 -10 --------- Run | Yrd Mat Machines Accessed 2 | . 2 Terminals . | . . Fabricators . | . . Repair Stations 1 | . 1 Recycling Units 1 | . 1 Scanalyzers . | . . Garrison Access . | . . Total Hacks 6 | . 6 Successful 5 | . 5 Failed 1 | . 1 Catastrophic . | . . Database Lockouts . | . . Manual . | . . Terminals . | . . Fabricators . | . . Repair Stations 3 | . 3 Recycling Units 3 | . 3 Scanalyzers . | . . Garrison Access . | . . Terminal Hacks . | . . Fabricator Hacks . | . . Repair Station Hacks 2 | . 2 Scan Component 1 | . 1 Repair 1 | . 1 Recycling Unit Hacks 3 | . 3 Recycle Component 1 | . 1 Process 2 | . 2 Scanalyzer . | . . Garrison Access Hacks . | . . Unauthorized Hacks . | . . Terminals . | . . Fabricators . | . . Repair Stations . | . . Recycling Units . | . . Scanalyzers . | . . Garrison Access . | . . Data Cores Recovered . | . . Used . | . . Hacking Detections 2 | . 2 Full Trace Events 2 | . 2 Feedback Events . | . . Feedback Blocked . | . . Robot Schematics Acquired . | . . Robots Built . | . . Authchips . | . . Time . | . . Total Robot Build Rating . | . . Part Schematics Acquired . | . . Parts Built . | . . Authchips . | . . Time . | . . Total Part Build Rating . | . . Part Studies Acquired . | . . Parts Repaired 1 | . 1 Time 26 | . 26 Parts Recycled 1 | . 1 Recycled Matter 231 | . 231 Retrieved Matter . | . . Retrieved Components . | . . Parts Scanalyzed . | . . Part Schematics Acquired . | . . Parts Damaged . | . . Bothacking | -11 -10 ------------ Run | Yrd Mat Used RIF Installer . | . . Robots Hacked . | . . Non-combat . | . . Combat . | . . Robot Hacks Applied . | . . Relay Couplers Released . | . . Fabnet Peak Effective % . | . . Robots Rewired . | . . Allies Hacked . | . . Hacks Repelled . | . . Allies | -11 -10 -------- Run | Yrd Mat Total Allies . | . . Largest Group . | . . Highest-Rated Group . | . . Highest-Rated Ally . | . . Total Orders . | . . Ally Attacks . | . . Total Damage . | . . Kills . | . . Allies Corrupted . | . . Allies Melted . | . . Intel | -11 -10 ------- Run | Yrd Mat Active Infowar (turns) 1514 | . 1514 Structural 1343 | . 1343 ECM 171 | . 171 Robot Analysis Total . | . . Derelict Logs Recovered . | . . Drone Launches . | . . Drone Recoveries . | . . Exploration | -11 -10 ------------- Run | Yrd Mat Turns Passed 2514 | 145 2369 Spaces Moved 794 | 66 728 Core 106 | 66 40 Treads 247 | . 247 Legs . | . . Wheels 285 | . 285 Hover 156 | . 156 Flight . | . . Fastest Speed 50 | 50 130 Average Speed 278 | 195 285 Slowest Speed 1400 | 250 1400 Overloaded Moves . | . . Propulsion Burnouts . | . . Robots Hopped . | . . Potential Cave-ins . | . . Cave-ins Triggered . | . . Exploration Rate (%) 49 | 6 92 Regions Visited 1 Branch Regions . Pre-discovered Areas . | . . Known Exits Taken . | . . Unknown Exits Taken 1 | 1 . Scrap Searched . | . . Spaces Dug . | . . Terrain Destroyed 1 | . 1 Melee . | . . Projectile . | . . AOE 1 | . 1 Terrain Rammed . | . . Walls Destroyed . | . . Machines Disabled . | . . Actions | -11 -10 --------- Run | Yrd Mat Total 988 | 83 905 Wait 64 | . 64 Move 793 | 65 728 Hop . | . . Pick Up 33 | 12 21 Fast Attach . | . . Attach 18 | 6 12 Detach 2 | . 2 Swap 3 | . 3 Drop 2 | . 2 Fire 72 | . 72 Melee . | . . Ram . | . . Kick . | . . Crush 1 | . 1 Escape Stasis . | . . Rewire . | . . Trap . | . . Miscellaneous . | . . Route ------- -11/Scrapyard -10/Materials (discovered 4 exits: [*Mat x3] / [*Sub]) History --------- Turn | Location | Event 11 | -11/Scrapyard | Discovered new exit (range 14) 146 | -11/Scrapyard | Entered Materials 310 | -10/Materials | Build established: Mutant 408 | -10/Materials | Discovered new exit (range 13) 604 | -10/Materials | Discovered new exit (range 16) 1125 | -10/Materials | Lost 3 parts (1p1n1w) 1377 | -10/Materials | Core integrity fell below 50% 1467 | -10/Materials | Discovered new exit (range 16) 1650 | -10/Materials | Discovered new exit (range 5) 1658 | -10/Materials | Lost 3 parts (1n1u1w) 1868 | -10/Materials | Core integrity fell below 20% 1977 | -10/Materials | Repaired Lgt. Armor Plating 2515 | -10/Materials | Destroyed by G-34 Mercenary with Small Laser Last Messages --------------- Analyzing inventory... Recycling at 100% efficiency: Sml. Laser (33) Corrupted Aluminum Leg (40) Lgt. Assault Rifle (23) Flight Unit (8) Flight Unit (8) Aluminum Leg (26) Heat Sink (11) Heat Sink (11) Aluminum Leg (31) Aluminum Leg (38) Lgt. Assault Rifle (2) >>Recycling(Process) Analyzing inventory... ALERT: Suspicious activity at Recycling Unit M001. Dispatching Investigation squad. Recycling unit begins matter transfer process. W-16 Scout sends out distress signal. Particle Gun destroyed. Map ----- +----------------------------------------------------+ | !#?????????# """ #????????????????? | | !##?????????# """ #????????????????? | | ####??????????# """ #????????????????? | | ####????????????# #???????#????????? | | #????????????# #?????? #????????? | | #????????????# #???? #?????????? | | #????????????#####+#####??? #??????????? | | #?????????###### ##### #??????????? | | ########### +??????????? | | " + T #??????????? | | " ########### #??????????? | | " #?????????## ### #########??????????? | | #??????????# #?## #############???????? | | #+##?##########+#### # #???????? | | # #??# + + """ #???????? | | # #??# ! # # "Y" """ #???????? | | %=#??# # # """ #???????? | | ###??# ==! # # """ #???????? | | ?????# =!! # # """ #???????? | | ###### =! * #^^ # #???????? | | #################### ########/############ | | T"### ## #????### ### # | | + # ##### # """ # | | # """ """ """ # gggt # """ # | | "" # """ """ """ # " w T + """ # | | "" + """ """ """ # @ # # | | ""% # # ##### # """ # | | "" #######+###+################### """ # | | # ##?# """ # | | + """ """ ##?# # | | % % # """ """ ##?########## | | #######+## ###### """ """ ##??????????? | | """ # ###### ###?????????? | | "T" # #######+####+########?????????? | | # # % # ##?????????? | | # +% %* + ##?????????? | | """"" # %# **! # % #########??? | | """"" # # *!! ###+## #########??? | | """""% # ############% =# # ##??? | | # # ###### # # ##??? | | ##+####### # #???## # # !!!##??? | | # # #???## # + ! !!!##??? | | # # """ #???## # # !! ##??? | | """ """ # # """ #???## # # ####? | | """ """ + + """ #???###<## ###########? | | """ """ # # #???###### # ##? | | """ """ # # """ #????##### + ##? | | """ """ # # """ #???????## # """ ##? | | # # """ #???????## # """"" ##? | | ########## # #???????## # """"" ##? | +----------------------------------------------------+ Best States ------------- Heat Dissipation 25 Energy Generation 10 Energy Capacity 250 Matter Stores 300 Matter Capacity 300 Sight Range 16 Terrain Scan Density 10 ECM Strength 1 Armor Coverage 150 Evasion (%) 50 Recoil Reduction 2 Item Schematics ----------------- None Robot Schematics ------------------ None Fabricated ------------ Nothing Repaired ---------- Lgt. Armor Plating | 57% | -10/Materials Studied --------- None Alien Tech Used ----------------- None Achievements -------------- DATA ERROR: Steam Global Achievement% For Emergencies Only Organ Harvest Physics Hates This One Trick There's More Where That Came From Challenges ------------ None Game ------ Seed SupersonicBlastWand Manual? 0 Play Time 00:37:04 Cumulative 5.1 hours Start 2025.10.31 @ 21:19:40 End 2025.10.31 @ 22:00:21 Sessions 1 Manual Loads 0 Difficulty Rogue Special Mode None Game No. 12 Rogue 12 Adventurer 0 Explorer 0 Win Type - Total 0 Types 0/0/0/0/0/0/0/0/0/0 Lore% 1 Gallery% 5 Achievement% 5 Wizard Run 0 Options --------- Layout 1 ASCII 0 Keyboard 0 Movement Mouse Keybinds 0 Fullscreen 1 Font 24/Smallcaps Map View 50x35 Zoom Use 0% Tactical HUD 0 Map Filters NONE Filters NONE Steam 1 RUN: 35c3688f-aacf-410c-9b49-2c4557dc9a3f